{"text_format":"1","workbook":"xlsx","n_sheets":4,"sheets":["Youmia","Account","Cassa","اسماء العملاء"],"not_rendered":{"charts":0,"images":0,"macros":1,"external_links":0,"defined_names":5,"comments":0,"pivot_tables":0},"unopened":[],"bounds":{"document_bytes":16777216,"sheet_cells":100000,"rows_first":2000,"rows_last":500,"rows_between":2000,"halvings":0,"cell_chars":16384,"cell_head_chars":4096},"cells_cut":0,"cells_raw":0,"read":"whole","date_system":"1900"}

{"sheet":"Youmia","index":0,"n_rows":96,"n_cols":29,"rows_kept":96,"cut":false,"hidden":false,"merged":[[3,4,3,5],[3,0,4,0],[3,1,4,1],[3,2,4,2],[3,25,3,26],[3,17,3,18],[3,19,3,20],[3,21,3,22],[3,23,3,24],[3,7,3,8],[3,9,3,10],[3,11,3,12],[3,15,3,16],[3,13,3,14],[3,6,4,6],[3,3,4,3]]}
[]
[null,null,null,null,"الرصيد",{"$f":"E3-F3","v":40},null,"الرصيد",{"$f":"H3-I3","v":406}]
[null,null,null,null,{"$f":"E91","v":329},{"$f":"F91","v":289},null,{"$f":"H91","v":406},{"$f":"I91","v":0}]
["التاريخ","البيـــــــــــــــان","المستند","توازن القيد","الصندوق",null,"العميل","العملاء",null,"اعلاف",null,"تبن",null,"سيلاج",null,"ادوية وتحصينات",null,"زراعة ( باذنجان )",null,"مرتبات",null,"كهرباء",null,"مصاريف عموية أخرى",null,"عهدة باسم",null,"ALL"]
[null,null,null,null,"استلام","صرف",null,"مدين","دائن","مدين","دائن","مدين","دائن","مدين","دائن","مدين","دائن","مدين","دائن","مدين","دائن","مدين","دائن","مدين","دائن","مدين","دائن","مدين","دائن"]
[]
[1,2,3,4,5,6,7,8,9,10,11,12,13,14,15,16,17,18,19,20,21,22,23,24,25,26,27]
["2020-12-01","دفعة نقدية","Mus1","القيد غير متوازن",34,29,"عبد العظيم",39,29,14,29,40,22,43,38,16,44,15,18,31,49,44,12,39,32,11,15,{"$f":"SUM(H8,J8,L8,N8,P8,R8,T8,V8,X8,Z8)","v":292},{"$f":"SUM(I8,K8,M8,O8,Q8,S8,U8,W8,Y8,AA8)","v":288}]
["2020-12-02","دفعه من حسابه","b","القيد غير متوازن",11,25,"محمد منصور",47,21,38,37,15,30,50,44,48,27,42,31,17,47,45,18,21,36,10,16,333,307]
["2020-12-03","دفعة نقدية","c","القيد غير متوازن",18,15,"رضوان",20,39,34,29,12,46,27,27,16,44,22,25,47,24,44,44,44,39,12,13,278,330]
["2020-12-04","شراء من رضوان","d","القيد غير متوازن",42,19,"رضوان",50,16,18,21,18,38,20,12,35,45,13,15,15,27,19,32,31,33,18,49,237,288]
["2020-12-05","دفعة نقدية","e","القيد غير متوازن",17,24,"إيهاب أبو سريع",16,21,33,32,13,20,39,31,47,36,50,27,33,19,44,17,28,42,11,32,314,277]
["2020-12-06","دفعه من حسابه","f","القيد غير متوازن",46,29,"محمد منصور",38,27,44,24,41,47,26,43,23,22,29,32,24,22,27,27,28,35,22,19,302,298]
["2020-12-07","دفعة نقدية","g","القيد غير متوازن",22,24,"عبد العظيم",49,42,15,14,36,37,40,33,28,43,11,24,16,22,19,31,150,12,49,23,413,281]
["2020-12-08","شراء من رضوان","h","القيد غير متوازن",17,38,"محمد منصور",37,42,30,45,36,34,33,38,37,18,18,41,41,44,45,23,30,45,28,30,335,360]
["2020-12-09","دفعة نقدية","i","القيد غير متوازن",50,40,"رضوان",27,21,27,46,36,31,22,10,17,34,24,25,38,29,16,39,32,38,12,28,251,301]
["2020-12-10","دفعه من حسابه","j","القيد غير متوازن",21,21,"إيهاب أبو سريع",26,15,25,10,34,26,47,18,19,24,45,45,16,32,50,22,30,47,31,37,323,276]
["2020-12-11","دفعة نقدية","k","القيد غير متوازن",34,10,"رضوان",44,12,31,45,26,47,32,39,24,30,18,29,25,19,18,31,22,28,33,10,273,290]
["2020-12-12","شراء من رضوان","l","القيد غير متوازن",17,15,"محمد منصور",13,47,18,49,38,34,44,22,28,50,14,37,47,10,23,23,37,29,36,33,298,334]
[null,null,null,null,null,null,null,null,null,null,null,null,null,null,null,null,null,null,null,null,null,null,null,null,null,null,null,0,0]
[null,null,null,null,null,null,null,null,null,null,null,null,null,null,null,null,null,null,null,null,null,null,null,null,null,null,null,0,0]
[null,null,null,null,null,null,null,null,null,null,null,null,null,null,null,null,null,null,null,null,null,null,null,null,null,null,null,0,0]
[null,null,null,null,null,null,null,null,null,null,null,null,null,null,null,null,null,null,null,null,null,null,null,null,null,null,null,0,0]
[null,null,null,null,null,null,null,null,null,null,null,null,null,null,null,null,null,null,null,null,null,null,null,null,null,null,null,0,0]
[null,null,null,null,null,null,null,null,null,null,null,null,null,null,null,null,null,null,null,null,null,null,null,null,null,null,null,0,0]
[null,null,null,null,null,null,null,null,null,null,null,null,null,null,null,null,null,null,null,null,null,null,null,null,null,null,null,0,0]
[null,null,null,null,null,null,null,null,null,null,null,null,null,null,null,null,null,null,null,null,null,null,null,null,null,null,null,0,0]
[null,null,null,null,null,null,null,null,null,null,null,null,null,null,null,null,null,null,null,null,null,null,null,null,null,null,null,0,0]
[null,null,null,null,null,null,null,null,null,null,null,null,null,null,null,null,null,null,null,null,null,null,null,null,null,null,null,0,0]
[null,null,null,null,null,null,null,null,null,null,null,null,null,null,null,null,null,null,null,null,null,null,null,null,null,null,null,0,0]
[null,null,null,null,null,null,null,null,null,null,null,null,null,null,null,null,null,null,null,null,null,null,null,null,null,null,null,0,0]
[null,null,null,null,null,null,null,null,null,null,null,null,null,null,null,null,null,null,null,null,null,null,null,null,null,null,null,0,0]
[null,null,null,null,null,null,null,null,null,null,null,null,null,null,null,null,null,null,null,null,null,null,null,null,null,null,null,0,0]
[null,null,null,null,null,null,null,null,null,null,null,null,null,null,null,null,null,null,null,null,null,null,null,null,null,null,null,0,0]
[null,null,null,null,null,null,null,null,null,null,null,null,null,null,null,null,null,null,null,null,null,null,null,null,null,null,null,0,0]
[null,null,null,null,null,null,null,null,null,null,null,null,null,null,null,null,null,null,null,null,null,null,null,null,null,null,null,0,0]
[null,null,null,null,null,null,null,null,null,null,null,null,null,null,null,null,null,null,null,null,null,null,null,null,null,null,null,0,0]
[null,null,null,null,null,null,null,null,null,null,null,null,null,null,null,null,null,null,null,null,null,null,null,null,null,null,null,0,0]
[null,null,null,null,null,null,null,null,null,null,null,null,null,null,null,null,null,null,null,null,null,null,null,null,null,null,null,0,0]
[null,null,null,null,null,null,null,null,null,null,null,null,null,null,null,null,null,null,null,null,null,null,null,null,null,null,null,0,0]
[null,null,null,null,null,null,null,null,null,null,null,null,null,null,null,null,null,null,null,null,null,null,null,null,null,null,null,0,0]
[null,null,null,null,null,null,null,null,null,null,null,null,null,null,null,null,null,null,null,null,null,null,null,null,null,null,null,0,0]
[null,null,null,null,null,null,null,null,null,null,null,null,null,null,null,null,null,null,null,null,null,null,null,null,null,null,null,0,0]
[null,null,null,null,null,null,null,null,null,null,null,null,null,null,null,null,null,null,null,null,null,null,null,null,null,null,null,0,0]
[null,null,null,null,null,null,null,null,null,null,null,null,null,null,null,null,null,null,null,null,null,null,null,null,null,null,null,0,0]
[null,null,null,null,null,null,null,null,null,null,null,null,null,null,null,null,null,null,null,null,null,null,null,null,null,null,null,0,0]
[null,null,null,null,null,null,null,null,null,null,null,null,null,null,null,null,null,null,null,null,null,null,null,null,null,null,null,0,0]
[null,null,null,null,null,null,null,null,null,null,null,null,null,null,null,null,null,null,null,null,null,null,null,null,null,null,null,0,0]
[null,null,null,null,null,null,null,null,null,null,null,null,null,null,null,null,null,null,null,null,null,null,null,null,null,null,null,0,0]
[null,null,null,null,null,null,null,null,null,null,null,null,null,null,null,null,null,null,null,null,null,null,null,null,null,null,null,0,0]
[null,null,null,null,null,null,null,null,null,null,null,null,null,null,null,null,null,null,null,null,null,null,null,null,null,null,null,0,0]
[null,null,null,null,null,null,null,null,null,null,null,null,null,null,null,null,null,null,null,null,null,null,null,null,null,null,null,0,0]
[null,null,null,null,null,null,null,null,null,null,null,null,null,null,null,null,null,null,null,null,null,null,null,null,null,null,null,0,0]
[null,null,null,null,null,null,null,null,null,null,null,null,null,null,null,null,null,null,null,null,null,null,null,null,null,null,null,0,0]
[null,null,null,null,null,null,null,null,null,null,null,null,null,null,null,null,null,null,null,null,null,null,null,null,null,null,null,0,0]
[null,null,null,null,null,null,null,null,null,null,null,null,null,null,null,null,null,null,null,null,null,null,null,null,null,null,null,0,0]
[null,null,null,null,null,null,null,null,null,null,null,null,null,null,null,null,null,null,null,null,null,null,null,null,null,null,null,0,0]
[null,null,null,null,null,null,null,null,null,null,null,null,null,null,null,null,null,null,null,null,null,null,null,null,null,null,null,0,0]
[null,null,null,null,null,null,null,null,null,null,null,null,null,null,null,null,null,null,null,null,null,null,null,null,null,null,null,0,0]
[null,null,null,null,null,null,null,null,null,null,null,null,null,null,null,null,null,null,null,null,null,null,null,null,null,null,null,0,0]
[null,null,null,null,null,null,null,null,null,null,null,null,null,null,null,null,null,null,null,null,null,null,null,null,null,null,null,0,0]
[null,null,null,null,null,null,null,null,null,null,null,null,null,null,null,null,null,null,null,null,null,null,null,null,null,null,null,0,0]
[null,null,null,null,null,null,null,null,null,null,null,null,null,null,null,null,null,null,null,null,null,null,null,null,null,null,null,0,0]
[null,null,null,null,null,null,null,null,null,null,null,null,null,null,null,null,null,null,null,null,null,null,null,null,null,null,null,0,0]
[null,null,null,null,null,null,null,null,null,null,null,null,null,null,null,null,null,null,null,null,null,null,null,null,null,null,null,0,0]
[null,null,null,null,null,null,null,null,null,null,null,null,null,null,null,null,null,null,null,null,null,null,null,null,null,null,null,0,0]
[null,null,null,null,null,null,null,null,null,null,null,null,null,null,null,null,null,null,null,null,null,null,null,null,null,null,null,0,0]
[null,null,null,null,null,null,null,null,null,null,null,null,null,null,null,null,null,null,null,null,null,null,null,null,null,null,null,0,0]
[null,null,null,null,null,null,null,null,null,null,null,null,null,null,null,null,null,null,null,null,null,null,null,null,null,null,null,0,0]
[null,null,null,null,null,null,null,null,null,null,null,null,null,null,null,null,null,null,null,null,null,null,null,null,null,null,null,0,0]
[null,null,null,null,null,null,null,null,null,null,null,null,null,null,null,null,null,null,null,null,null,null,null,null,null,null,null,0,0]
[null,null,null,null,null,null,null,null,null,null,null,null,null,null,null,null,null,null,null,null,null,null,null,null,null,null,null,0,0]
[null,null,null,null,null,null,null,null,null,null,null,null,null,null,null,null,null,null,null,null,null,null,null,null,null,null,null,{"$f":"SUM(H73,J73,L73,N73,P73,R73,T73,V73,X73,Z73)","v":0},{"$f":"SUM(I73,K73,M73,O73,Q73,S73,U73,W73,Y73,AA73)","v":0}]
[null,null,null,null,null,null,null,null,null,null,null,null,null,null,null,null,null,null,null,null,null,null,null,null,null,null,null,0,0]
[null,null,null,null,null,null,null,null,null,null,null,null,null,null,null,null,null,null,null,null,null,null,null,null,null,null,null,0,0]
[null,null,null,null,null,null,null,null,null,null,null,null,null,null,null,null,null,null,null,null,null,null,null,null,null,null,null,0,0]
[null,null,null,null,null,null,null,null,null,null,null,null,null,null,null,null,null,null,null,null,null,null,null,null,null,null,null,0,0]
[null,null,null,null,null,null,null,null,null,null,null,null,null,null,null,null,null,null,null,null,null,null,null,null,null,null,null,0,0]
[null,null,null,null,null,null,null,null,null,null,null,null,null,null,null,null,null,null,null,null,null,null,null,null,null,null,null,0,0]
[null,null,null,null,null,null,null,null,null,null,null,null,null,null,null,null,null,null,null,null,null,null,null,null,null,null,null,0,0]
[null,null,null,null,null,null,null,null,null,null,null,null,null,null,null,null,null,null,null,null,null,null,null,null,null,null,null,0,0]
[null,null,null,null,null,null,null,null,null,null,null,null,null,null,null,null,null,null,null,null,null,null,null,null,null,null,null,{"$f":"E82+H82+J82+L82+N82+P82+R82+T82+V82+X82+Z82","v":0},{"$f":"F82+I82+K82+M82+O82+Q82+S82+U82+W82+Y82+AA82","v":0}]
[null,null,null,null,null,null,null,null,null,null,null,null,null,null,null,null,null,null,null,null,null,null,null,null,null,null,null,0,0]
[null,null,null,null,null,null,null,null,null,null,null,null,null,null,null,null,null,null,null,null,null,null,null,null,null,null,null,0,0]
[null,null,null,null,null,null,null,null,null,null,null,null,null,null,null,null,null,null,null,null,null,null,null,null,null,null,null,0,0]
[null,null,null,null,null,null,null,null,null,null,null,null,null,null,null,null,null,null,null,null,null,null,null,null,null,null,null,0,0]
[null,null,null,null,null,null,null,null,null,null,null,null,null,null,null,null,null,null,null,null,null,null,null,null,null,null,null,0,0]
[null,null,null,null,null,null,null,null,null,null,null,null,null,null,null,null,null,null,null,null,null,null,null,null,null,null,null,0,0]
[null,null,null,null,null,null,null,null,null,null,null,null,null,null,null,null,null,null,null,null,null,null,null,null,null,null,null,0,0]
[null,null,null,null,null,null,null,null,null,null,null,null,null,null,null,null,null,null,null,null,null,null,null,null,null,null,null,0,0]
[null,null,null,null,{"$f":"SUM(E8:E90)","v":329},{"$f":"SUM(F8:F90)","v":289},{"$f":"SUM(G8:G90)","v":0},{"$f":"SUM(H8:H90)","v":406}]
[]
[]
[]
[]
[null,null,null,null,null,null,null,null,null,null,null,null,null,null,null,null,null,null,null,null,null,null,null,null,null,null,null,null,"`"]

{"sheet":"Account","index":1,"n_rows":10,"n_cols":7,"rows_kept":10,"cut":false,"hidden":false,"merged":[]}
[]
[null,"كشف حساب","رضوان"]
[]
["#","التاريخ","البيـــــــــــــــان","المستند","مدين","دائن","الرصيد"]
[]
[1,"2020-12-03","دفعة نقدية","c",278,330,52]
[2,"2020-12-04","شراء من رضوان","d",237,288,51]
[3,"2020-12-09","دفعة نقدية","i",251,301,50]
[4,"2020-12-11","دفعة نقدية","k",273,290,17]
["المجموع",null,null,null,1039,1209,170]

{"sheet":"Cassa","index":2,"n_rows":17,"n_cols":12,"rows_kept":17,"cut":false,"hidden":false,"merged":[]}
[null,null,null,null,null,null,null,null,null,null,null,{"$f":"SUM(H5,F6,-G6)","v":4}]
[null,"كشف حساب الصندوق",null,null,"الرصيد"]
[]
[null,"التاريخ","البيـــــــــــــــان","العميل","المستند","مدين","دائن","الرصيد"]
[]
[1,"2020-12-01","دفعة نقدية","عبد العظيم","Mus1",292,288,4]
[2,"2020-12-02","دفعه من حسابه","محمد منصور","b",333,307,30]
[3,"2020-12-03","دفعة نقدية","رضوان","c",278,330,-22]
[4,"2020-12-04","شراء من رضوان","رضوان","d",237,288,-73]
[5,"2020-12-05","دفعة نقدية","إيهاب أبو سريع","e",314,277,-36]
[6,"2020-12-06","دفعه من حسابه","محمد منصور","f",302,298,-32]
[7,"2020-12-07","دفعة نقدية","عبد العظيم","g",413,281,100]
[8,"2020-12-08","شراء من رضوان","محمد منصور","h",335,360,75]
[9,"2020-12-09","دفعة نقدية","رضوان","i",251,301,25]
[10,"2020-12-10","دفعه من حسابه","إيهاب أبو سريع","j",323,276,72]
[11,"2020-12-11","دفعة نقدية","رضوان","k",273,290,55]
[12,"2020-12-12","شراء من رضوان","محمد منصور","l",298,334,19]

{"sheet":"اسماء العملاء","index":3,"n_rows":9,"n_cols":2,"rows_kept":9,"cut":false,"hidden":false,"merged":[]}
[]
[]
[null,"قائمة العملاء"]
[null,"إيهاب أبو سريع"]
[null,"محمد منصور"]
[null,"رضوان"]
[null,"اهاب"]
[null,"عبد العظيم"]
[null,"مزرعة ريجو - مهندس وليد"]